fUSD/lending_fUSD_20250911
["ID","MTS","AMOUNT","RATE_DAILY","PERIOD"]
[384954834,1757633505044,-400.0,0.00028219,7]
[384954835,1757633505054,-400.0,0.00028219,7]
[384954836,1757633505064,-870.67,0.00028219,7]
[384954837,1757633505073,-4745.08,0.00028219,7]
[384954838,1757633505083,-1022.9,0.00028219,7]
[384954839,1757633505093,-475.11,0.00028219,7]
[384954840,1757633505103,-400.0,0.00028219,7]
[384954841,1757633505113,-910.89,0.00028219,7]
[384954842,1757633505123,-400.0,0.00028219,7]
[384954843,1757633505132,-1292.66,0.00028219,7]
[384954844,1757633505143,-1527.47,0.00028219,7]
[384954845,1757633505152,-400.0,0.00028219,7]
[384954846,1757633505162,-1087.68,0.00028219,7]
[384954847,1757633505171,-400.0,0.00028219,7]
[384954848,1757633505182,-448.79,0.00028219,7]
[384954849,1757633505192,-1002.17,0.00028219,7]
[384954850,1757633505202,-464.58,0.00028219,7]
[384954851,1757633505212,-400.0,0.00028219,7]
[384954852,1757633505221,-400.0,0.00028219,7]
[384954853,1757633505231,-1327.96,0.00028219,7]
[384954854,1757633505242,-903.38,0.00028219,7]
[384954855,1757633505251,-552.5,0.00028219,7]
[384954856,1757633505261,-400.0,0.00028219,7]
[384954857,1757633505270,-400.0,0.00028219,7]
[384954858,1757633505279,-1233.51,0.00028219,7]
[384954859,1757633505289,-400.0,0.00028219,7]
[384954860,1757633505298,-794.79,0.00028219,7]
[384954861,1757633505307,-400.0,0.00028219,7]
[384954862,1757633505317,-431.41,0.00028219,7]
[384954863,1757633505326,-400.0,0.00028219,7]
[384954864,1757633505335,-300.0,0.00028219,7]
[384954865,1757633505345,-729.34,0.00028219,7]
[384954866,1757633505355,-607.94,0.00028219,7]
[384954867,1757633505364,-474.99,0.00028219,7]
[384954868,1757633505374,-950.4,0.00028219,7]
[384954869,1757633505383,-1175.32,0.00028219,7]
[384954870,1757633505393,-1985.7,0.00028219,7]
[384954871,1757633505403,-744.96,0.00028219,7]
[384954872,1757633505412,-892.33,0.00028219,7]
[384954873,1757633505421,-400.0,0.00028219,7]
[384954874,1757633505430,-1438.81,0.00028219,7]
[384954875,1757633505440,-886.39,0.00028219,7]
[384954876,1757633505450,-657.15,0.00028219,7]
[384954877,1757633505459,-1340.31,0.00028219,7]
[384954878,1757633505469,-998.3,0.00028219,7]
[384954879,1757633505478,-5647.79,0.00028219,7]
[384954880,1757633505487,-400.0,0.00028219,7]
[384954881,1757633505497,-400.0,0.00028219,7]
[384954882,1757633505507,-400.0,0.00028219,2]
[384954883,1757633505518,-632.61,0.00028219,7]
[384954884,1757633505529,-400.0,0.00028219,7]
[384954885,1757633505538,-1183.19,0.00028219,7]
[384954886,1757633505548,-1003.05,0.00028219,7]
[384954887,1757633505558,-446.68,0.00028219,7]
[384954888,1757633505568,-400.0,0.00028219,7]
[384954889,1757633505577,-1000.57,0.00028219,7]
[384954890,1757633505587,-1389.13,0.00028219,7]
[384954891,1757633505596,-400.0,0.00028219,7]
[384954892,1757633505605,-1374.75,0.00028219,7]
[384954893,1757633505614,-965.62,0.00028219,7]
[384954894,1757633505623,-1005.88,0.00028219,7]
[384954895,1757633505632,-450.09,0.00028219,7]
[384954896,1757633505641,-579.26,0.00028219,7]
[384954897,1757633505650,-1667.9,0.00028219,7]
[384954898,1757633505659,-400.0,0.00028219,7]
[384954899,1757633505668,-528.32,0.00028219,7]
[384954900,1757633505679,-400.0,0.00028219,7]
[384954901,1757633505688,-1007.03,0.00028219,7]
[384954902,1757633505698,-400.0,0.00028219,7]
[384954903,1757633505707,-1098.51,0.00028219,7]
[384954904,1757633505716,-1266.55,0.00028219,7]
[384954905,1757633505726,-2058.78,0.00028219,7]
[384954906,1757633505735,-400.0,0.00028219,7]
[384954907,1757633505745,-561.88,0.00028219,7]
[384954908,1757633505754,-775.26,0.00028219,7]
[384954909,1757633505764,-273.99229895,0.00028219,7]
[384954910,1757633505773,-982.86,0.00028219,7]
[384954911,1757633505783,-441.63,0.00028219,7]
[384954912,1757633505792,-400.0,0.00028219,7]
[384954913,1757633505802,-1094.3,0.00028219,7]
[384954914,1757633505812,-989.83,0.00028219,7]
[384954915,1757633505822,-1269.26,0.00028219,7]
[384954916,1757633505831,-1101.97,0.00028219,7]
[384954917,1757633505842,-854.63,0.00028219,7]
[384954918,1757633505853,-802.24,0.00028219,7]
[384954919,1757633505864,-1604.77,0.00028219,7]
[384954920,1757633505873,-1151.18,0.00028219,7]
[384954921,1757633505882,-400.0,0.00028219,7]
[384954922,1757633505892,-861.19,0.00028219,7]
[384954923,1757633505901,-1298.19,0.00028219,7]
[384954924,1757633505910,-952.17,0.00028219,7]
[384954925,1757633505925,-2213.82,0.00028219,7]
[384954926,1757633505939,-2204.19,0.00028219,7]
[384954927,1757633505948,-400.0,0.00028219,7]
[384954928,1757633505958,-400.0,0.00028219,7]
[384954929,1757633505967,-406.49,0.00028219,7]
[384954930,1757633505977,-754.57,0.00028219,7]
[384954931,1757633505987,-1178.64,0.00028219,7]
[384954932,1757633505996,-1273.24,0.00028219,7]
[384954933,1757633506006,-1522.42,0.00028219,7]
[384954934,1757633506015,-453.02,0.00028219,7]
[384954935,1757633506024,-400.0,0.00028219,7]
[384954936,1757633506035,-949.12,0.00028219,7]
[384954937,1757633506045,-400.0,0.00028219,7]
[384954938,1757633506055,-1083.88,0.00028219,7]
[384954939,1757633506064,-1959.23,0.00028219,7]
[384954940,1757633506074,-1156.25,0.00028219,7]
[384954941,1757633506083,-1599.37,0.00028219,7]
[384954942,1757633506092,-1233.31,0.00028219,7]
[384954943,1757633506101,-591.65,0.00028219,7]
[384954944,1757633506110,-400.0,0.00028219,7]
[384954945,1757633506119,-1169.6,0.00028219,7]
[384954946,1757633506129,-400.0,0.00028219,7]
[384954947,1757633506138,-609.33,0.00028219,7]
[384954948,1757633506148,-505.59,0.00028219,7]
[384954949,1757633506158,-400.0,0.00028219,7]
[384954950,1757633506167,-1184.35,0.00028219,7]
[384954951,1757633506177,-1314.36,0.00028219,7]
[384954952,1757633506186,-779.61,0.00028219,7]
[384954953,1757633506196,-2191.34,0.00028219,7]
[384954954,1757633506205,-2138.23,0.00028219,7]
[384954955,1757633506215,-3752.4,0.00028219,7]
[384954956,1757633506224,-1286.81,0.00028219,7]
[384954957,1757633506234,-1836.16,0.00028219,7]
[384954958,1757633506243,-400.0,0.00028219,7]
[384954959,1757633506253,-400.0,0.00028219,7]
[384954960,1757633506263,-2397.01,0.00028219,7]
[384954961,1757633506272,-715.33,0.00028219,7]
[384954962,1757633506281,-1204.85,0.00028219,7]
[384954963,1757633506291,-1264.96,0.00028219,7]
[384954964,1757633506300,-400.0,0.00028219,7]
[384954965,1757633506309,-466.17,0.00028219,7]
[384954966,1757633506319,-2021.87,0.00028219,7]
[384954967,1757633506329,-400.0,0.00028219,7]
[384954968,1757633506338,-1299.21,0.00028219,7]
[384954969,1757633506347,-2078.21,0.00028219,7]
[384954970,1757633506356,-2054.39,0.00028219,7]
[384954971,1757633506365,-1611.06,0.00028219,7]
[384954972,1757633506374,-3283.72,0.00028219,7]
[384954973,1757633506384,-2546.19,0.00028219,7]
[384954974,1757633506394,-625.24,0.00028219,7]
[384954975,1757633506405,-1010.54,0.00028219,7]
[384954976,1757633506414,-1133.37,0.00028219,7]
[384954977,1757633506424,-1350.88,0.00028219,7]
[384954978,1757633506433,-2788.83,0.00028219,7]
[384954979,1757633506444,-1161.6,0.00028219,7]
[384954980,1757633506453,-1239.86,0.00028219,7]
[384954981,1757633506462,-400.0,0.00028219,7]
[384954982,1757633506473,-3659.99,0.00028219,7]
[384954983,1757633506482,-400.0,0.00028219,7]
[384954984,1757633506492,-1058.57,0.00028219,7]
[384954985,1757633506502,-400.0,0.00028219,7]
[384954986,1757633506513,-870.59,0.00028219,7]
[384954987,1757633506522,-1051.01,0.00028219,7]
[384954988,1757633506533,-885.69,0.00028219,7]
[384954989,1757633506542,-1221.0,0.00028219,7]
[384954990,1757633506552,-400.0,0.00028219,7]
[384954991,1757633506562,-981.38,0.00028219,7]
[384954992,1757633506572,-2580.89,0.00028219,7]
[384954993,1757633506582,-401.69,0.00028219,7]
[384954994,1757633506592,-1325.12,0.00028219,7]
[384954995,1757633506602,-1406.34,0.00028219,7]
[384954996,1757633506611,-450.31,0.00028219,7]
[384954997,1757633506620,-1966.27,0.00028219,7]
[384954998,1757633506629,-508.18,0.00028219,7]
[384954999,1757633506639,-1031.57,0.00028219,7]
[384955000,1757633506648,-1144.2,0.00028219,7]
[384955001,1757633506657,-400.0,0.00028219,7]
[384955002,1757633506666,-2005.14,0.00028219,7]
[384955003,1757633506675,-400.0,0.00028219,7]
[384955004,1757633506685,-1338.86,0.00028219,7]
[384955005,1757633506694,-400.0,0.00028219,7]
[384955006,1757633506703,-400.0,0.00028219,7]
[384955007,1757633506713,-1705.5,0.00028219,7]
[384955008,1757633506722,-1384.85,0.00028219,7]
[384955009,1757633506732,-752.53,0.00028219,7]
[384955010,1757633506741,-1424.49,0.00028219,7]
[384955011,1757633506750,-1068.12,0.00028219,7]
[384955012,1757633506759,-1543.53,0.00028219,7]
[384955013,1757633506768,-1197.36,0.00028219,7]
[384955014,1757633506777,-1089.51,0.00028219,7]
[384955015,1757633506786,-1419.68,0.00028219,7]
[384955016,1757633506796,-987.91,0.00028219,7]
[384955017,1757633506805,-560.91,0.00028219,7]
[384955018,1757633506815,-1405.14,0.00028219,7]
[384955019,1757633506825,-507.06,0.00028219,7]
[384955020,1757633506835,-1107.15,0.00028219,7]
[384955021,1757633506845,-400.0,0.00028219,7]
[384955022,1757633506854,-1286.63,0.00028219,7]
[384955023,1757633506863,-407.66,0.00028219,7]
[384955024,1757633506872,-1615.55,0.00028219,7]
[384955025,1757633506883,-400.0,0.00028219,7]
[384955026,1757633506893,-1227.53,0.00028219,7]
[384955027,1757633506903,-2361.95,0.00028219,7]
[384955028,1757633506912,-1700.02,0.00028219,7]
[384955029,1757633506921,-460.81,0.00028219,7]
[384955030,1757633506931,-1039.07,0.00028219,7]
[384955031,1757633506940,-1435.29,0.00028219,7]
[384955032,1757633506950,-1444.49,0.00028219,7]
[384955033,1757633506959,-726.73,0.00028219,7]
[384955034,1757633506968,-6639.42,0.00028219,7]
[384955035,1757633506977,-1359.39,0.00028219,7]
[384955036,1757633506987,-2478.99,0.00028219,7]
[384955037,1757633506996,-2076.21,0.00028219,7]
[384955038,1757633507005,-1098.13,0.00028219,7]
[384955039,1757633507015,-1378.72,0.00028219,7]
[384955040,1757633507025,-1274.1,0.00028219,7]
[384955041,1757633507034,-499.68,0.00028219,7]
[384955042,1757633507044,-1502.78,0.00028219,7]
[384955043,1757633507054,-400.0,0.00028219,7]
[384955044,1757633507064,-400.0,0.00028219,5]
[384955045,1757633507073,-1042.46,0.00028219,7]
[384955046,1757633507082,-3024.01,0.00028219,7]
[384955047,1757633507091,-400.0,0.00028219,7]
[384955048,1757633507101,-1861.34,0.00028219,7]
[384955049,1757633507110,-400.0,0.00028219,7]
[384955050,1757633507119,-444.38,0.00028219,7]
[384955051,1757633507128,-1020.88,0.00028219,7]
[384955052,1757633507137,-2326.81,0.00028219,7]
[384955053,1757633507146,-3357.08,0.00028219,7]
[384955054,1757633507155,-1539.49,0.00028219,7]
[384955055,1757633507166,-407.4,0.00028219,7]
[384955056,1757633507175,-1135.17,0.00028219,7]
[384955057,1757633507184,-1001.4,0.00028219,7]
[384955058,1757633507194,-4286.71,0.00028219,7]
[384955059,1757633507203,-400.0,0.00028219,7]
[384955060,1757633507212,-400.0,0.00028219,7]
[384955061,1757633507221,-1178.15,0.00028219,7]
[384955062,1757633507230,-4759.47,0.00028219,7]
[384955063,1757633507240,-1137.02,0.00028219,7]
[384955064,1757633507250,-1095.27,0.00028219,7]
[384955065,1757633507259,-681.95,0.00028219,7]
[384955066,1757633507268,-1249.41,0.00028219,7]
[384955067,1757633507277,-4804.05,0.00028219,7]
[384955068,1757633507286,-923.45,0.00028219,7]
[384955069,1757633507296,-712.85,0.00028219,7]
[384955070,1757633507306,-1384.54,0.00028219,7]
[384955071,1757633507315,-2383.73,0.00028219,7]
[384955072,1757633507325,-1385.16,0.00028219,7]
[384955073,1757633507334,-293.53342678,0.00028219,7]
[384955074,1757633507344,-5278.59,0.00028219,7]
[384955075,1757633507353,-1440.73,0.00028219,7]
[384955076,1757633507362,-909.93,0.00028219,7]
[384955077,1757633507371,-1917.55,0.00028219,7]
[384955078,1757633507380,-943.46,0.00028219,7]
[384955079,1757633507389,-400.0,0.00028219,7]
[384955080,1757633507399,-1768.75,0.00028219,7]
[384955081,1757633507407,-400.0,0.00028219,7]
[384955082,1757633507417,-1850.78,0.00028219,7]
[384955083,1757633507426,-400.0,0.00028219,7]
[384955084,1757633507435,-1414.65,0.00028219,7]
[384955085,1757633507443,-2522.98,0.00028219,7]
[384955086,1757633507452,-8915.5,0.00028219,7]
[384955087,1757633507461,-2293.05,0.00028219,7]
[384955088,1757633507470,-1506.19,0.00028219,7]
[384955089,1757633507479,-646.55,0.00028219,7]
[384955090,1757633507488,-1115.97,0.00028219,7]
[384955091,1757633507497,-1228.55,0.00028219,7]
[384955092,1757633507507,-400.0,0.00028219,7]
[384955093,1757633507515,-400.0,0.00028219,7]
[384955094,1757633507524,-822.61,0.00028219,7]
[384955095,1757633507533,-2894.96,0.00028219,7]
[384955096,1757633507542,-400.0,0.00028219,7]
[384955097,1757633507551,-400.0,0.00028219,7]
[384955098,1757633507560,-1099.92,0.00028219,7]
[384955099,1757633507569,-1192.58,0.00028219,7]
[384955100,1757633507579,-1669.73,0.00028219,7]
[384955101,1757633507587,-1361.61,0.00028219,7]
[384955102,1757633507598,-1391.18,0.00028219,7]
[384955103,1757633507607,-400.0,0.00028219,7]
[384955104,1757633507616,-487.65,0.00028219,7]
[384955105,1757633507626,-1005.66,0.00028219,7]
[384955106,1757633507635,-400.0,0.00028219,7]
[384955107,1757633507644,-788.43,0.00028219,7]
[384955108,1757633507655,-4228.2,0.00028219,7]
[384955109,1757633507664,-1287.44,0.00028219,7]
[384955110,1757633507674,-581.85,0.00028219,7]
[384955111,1757633507683,-400.0,0.00028219,7]
[384955112,1757633507692,-632.0,0.00028219,7]
[384955113,1757633507701,-400.0,0.00028219,7]
[384955114,1757633507711,-492.57,0.00028219,7]
[384955115,1757633507720,-400.0,0.00028219,7]
[384955116,1757633507729,-674.36,0.00028219,7]
[384955117,1757633507738,-400.0,0.00028219,7]
[384955118,1757633507748,-1523.77,0.00028219,7]
[384955119,1757633507977,-3392.45,0.00028219,7]
[384955120,1757633507988,-540.08268543,0.00028219,7]
[384955121,1757633507998,-788.79,0.00028219,7]
[384955122,1757633508007,-400.0,0.00028219,7]
[384955123,1757633508017,-693.52,0.00028219,7]
[384955124,1757633508027,-633.62,0.00028219,7]
[384955125,1757633508036,-571.68,0.00028219,7]
[384955126,1757633508046,-3716.07,0.00028219,7]
[384955127,1757633508055,-400.0,0.00028219,7]
[384955128,1757633508064,-400.0,0.00028219,7]
[384955129,1757633508073,-2442.24,0.00028219,7]
[384955130,1757633508083,-993.53,0.00028219,7]
[384955131,1757633508093,-1414.86,0.00028219,7]
[384955132,1757633508103,-492.14,0.00028219,7]
[384955133,1757633508112,-1644.51,0.00028219,7]
[384955134,1757633508121,-1049.17,0.00028219,7]
[384955135,1757633508131,-730.7,0.00028219,7]
[384955136,1757633508140,-625.87,0.00028219,7]
[384955137,1757633508150,-3663.04,0.00028219,7]
[384955138,1757633508159,-444.87,0.00028219,7]
[384955139,1757633508169,-591.04,0.00028219,7]
[384955140,1757633508178,-1449.18,0.00028219,7]
[384955141,1757633508188,-3224.91,0.00028219,7]
[384955142,1757633508198,-1564.29,0.00028219,7]
[384955143,1757633508207,-1008.68,0.00028219,7]
[384955144,1757633508217,-1052.95,0.00028219,7]
[384955145,1757633508225,-669.52,0.00028219,7]
[384955146,1757633508234,-400.0,0.00028219,7]
[384955147,1757633508244,-1219.73,0.00028219,7]
[384955148,1757633508254,-990.64,0.00028219,7]
[384955149,1757633508263,-436.74,0.00028219,7]
[384955150,1757633508273,-464.91,0.00028219,7]
[384955151,1757633508282,-400.0,0.00028219,7]
[384955152,1757633508291,-4257.44,0.00028219,7]
[384955153,1757633508300,-400.0,0.00028219,7]
[384955154,1757633508310,-400.0,0.00028219,7]
[384955155,1757633508319,-1555.95,0.00028219,7]
[384955156,1757633508328,-400.0,0.00028219,7]
[384955157,1757633508338,-1593.33,0.00028219,7]
[384955158,1757633508348,-1898.89,0.00028219,7]
[384955159,1757633508357,-482.11,0.00028219,7]
[384955160,1757633508366,-424.44,0.00028219,7]
[384955161,1757633508376,-419.72,0.00028219,7]
[384955162,1757633508385,-889.61,0.0002822,7]
[384955163,1757633508395,-613.49,0.0002822,7]
[384955164,1757633508404,-648.34,0.0002822,7]
[384955165,1757633508414,-1000.0,0.00028221,5]
[384955166,1757633508424,-1000.0,0.00028221,5]
[384955167,1757633508434,-1000.0,0.00028221,5]
[384955168,1757633508444,-1000.0,0.00028221,5]
[384955169,1757633508454,-1000.0,0.00028221,5]
[384955170,1757633508463,-1000.0,0.00028221,5]
[384955172,1757633508472,-1000.0,0.00028221,5]
[384955173,1757633508481,-1000.0,0.00028221,5]
[384955174,1757633508490,-502.14310286,0.00028221,5]
[384955175,1757633508499,-1000.0,0.00028221,5]
[384955176,1757633508508,-500.0,0.00028221,5]
[384955177,1757633508518,-258.10279758,0.00028221,5]
[384955178,1757633508527,-500.0,0.00028221,5]
[384955179,1757633508536,-1000.0,0.00028221,2]
[384955180,1757633508546,-1000.0,0.00028221,5]
[384955181,1757633508555,-1000.0,0.00028221,5]
[384955182,1757633508564,-164.77199516,0.00028221,5]
[384955183,1757633508573,-1000.0,0.00028221,5]
[384955184,1757633508583,-410.15543287,0.00028221,5]
[384955185,1757633508595,-1000.0,0.00028221,5]
[384955186,1757633508605,-500.0,0.00028221,5]
[384955187,1757633508614,-502.27257765,0.00028221,5]
[384955188,1757633508623,-510.23782192,0.00028221,5]
[384955189,1757633508633,-1000.0,0.00028221,5]
[384955190,1757633508642,-1000.0,0.00028221,5]
[384955191,1757633508651,-1053.33747422,0.00028221,5]
[384955192,1757633508660,-1000.0,0.00028221,5]
[384955193,1757633508670,-1000.0,0.00028221,5]
[384955194,1757633508680,-167.65932097,0.00028221,5]
[384955195,1757633508689,-1000.0,0.00028221,5]
[384955196,1757633508699,-1000.0,0.00028221,5]
[384955197,1757633508709,-1000.0,0.00028221,5]
[384955198,1757633508718,-1000.0,0.00028221,5]
[384955199,1757633508728,-1000.0,0.00028221,5]
[384955200,1757633508737,-1000.0,0.00028221,5]
[384955201,1757633508746,-538.41879604,0.00028221,5]
[384955202,1757633508756,-500.0,0.00028221,5]
[384955203,1757633508765,-1000.0,0.00028221,5]
[384955204,1757633508775,-1000.0,0.00028221,5]
[384955205,1757633508785,-1000.0,0.00028221,5]
[384955206,1757633508794,-1000.0,0.00028221,5]
[384955207,1757633508804,-1000.0,0.00028221,5]
[384955208,1757633508814,-500.8305847,0.00028221,5]
[384955209,1757633508823,-1000.0,0.00028221,5]
[384955210,1757633508832,-9372.37973855,0.00028226,2]
[384955211,1757633508842,-152.58558665,0.00028273,2]
[384955212,1757633508852,-704.48,0.000283,7]
[384955213,1757633508861,-1000.0,0.000283,2]
[384955214,1757633508870,-334.5472959,0.00028353,2]
[384955215,1757633508880,-9372.37973855,0.00028392,2]
[384955216,1757633508890,-500.0,0.00028468,5]
[384955217,1757633508899,-500.0,0.00028473,5]
[384955218,1757633508909,-150.0,0.00028473,5]
[384955219,1757633508919,-300.0,0.00028492,10]
[384955220,1757633508928,-300.0,0.00028492,10]
[384955221,1757633508942,-300.0,0.00028492,10]
[384955222,1757633508952,-300.0,0.00028492,10]
[384955223,1757633508962,-300.0,0.00028492,10]
[384955224,1757633508972,-300.0,0.00028492,10]
[384955225,1757633508982,-300.0,0.00028492,10]
[384955226,1757633508991,-500.0,0.00028492,7]
[384955227,1757633509002,-437.11,0.00028492,7]
[384955228,1757633509011,-889.61,0.00028492,7]
[384955229,1757633509021,-889.61,0.00028492,7]
[384955230,1757633509031,-889.61,0.00028492,7]
[384955231,1757633509040,-889.61,0.00028492,7]
[384955232,1757633509049,-889.76,0.00028492,7]
[384955233,1757633509059,-613.49,0.00028492,7]
[384955234,1757633509069,-613.49,0.00028492,7]
[384955235,1757633509079,-613.49,0.00028492,7]
[384955236,1757633509089,-613.49,0.00028492,7]
[384955237,1757633509100,-613.49,0.00028492,7]
[384955238,1757633509110,-613.53,0.00028492,7]
[384955239,1757633509119,-648.34,0.00028492,7]
[384955240,1757633509129,-648.34,0.00028492,7]
[384955241,1757633509138,-648.34,0.00028492,7]
[384955242,1757633509148,-648.34,0.00028492,7]
[384955243,1757633509157,-648.34,0.00028492,7]
[384955244,1757633509167,-648.4154543,0.00028492,7]
[384955245,1757633509177,-500.0,0.00028493,7]
[384955246,1757633509187,-248.34398227,0.00028493,7]
[384955247,1757633509197,-150.0,0.00028493,2]
[384955248,1757633509207,-437.0,0.00028493,7]
[384955249,1757633509217,-500.0,0.00028493,7]
[384955250,1757633509226,-3072.0,0.00028493,7]
[384955251,1757633509236,-150.0,0.00028493,7]
[384955252,1757633509245,-150.0,0.00028493,2]
[384955253,1757633509255,-500.0,0.00028493,7]
[384955254,1757633509265,-500.0,0.00028493,7]
[384955255,1757633509274,-500.0,0.00028493,7]
[384955256,1757633509284,-150.0,0.00028493,7]
[384955257,1757633509294,-500.0,0.00028493,7]
[384955258,1757633509304,-158.523326,0.00028493,7]
[384955259,1757633509314,-158.254711,0.00028493,7]
[384955260,1757633509324,-424.01,0.00028493,7]
[384955261,1757633509333,-400.0,0.00028493,7]
[384955262,1757633509344,-400.0,0.00028493,7]
[384955263,1757633509354,-644.7,0.00028493,7]
[384955264,1757633509363,-939.76,0.00028493,7]
[384955265,1757633509373,-568.64,0.00028493,7]
[384955266,1757633509382,-846.97,0.00028493,7]
[384955267,1757633509392,-400.0,0.00028493,7]
[384955268,1757633509401,-400.0,0.00028493,7]
[384955269,1757633509410,-400.0,0.00028493,7]
[384955270,1757633509419,-1152.69,0.00028493,7]
[384955271,1757633509427,-400.0,0.00028493,7]
[384955272,1757633509436,-961.48,0.00028493,7]
[384955273,1757633509445,-400.0,0.00028493,7]
[384955274,1757633509455,-629.39,0.00028493,7]
[384955275,1757633509465,-400.0,0.00028493,7]
[384955276,1757633509475,-831.63,0.00028493,7]
[384955277,1757633509484,-400.0,0.00028493,7]
[384955278,1757633509493,-400.0,0.00028493,7]
[384955279,1757633509502,-800.48,0.00028493,7]
[384955280,1757633509512,-400.0,0.00028493,7]
[384955281,1757633509522,-400.0,0.00028493,7]
[384955282,1757633509532,-1171.77,0.00028493,7]
[384955283,1757633509541,-400.0,0.00028493,7]
[384955284,1757633509558,-400.0,0.00028493,7]
[384955285,1757633509578,-400.63,0.00028493,7]
[384955286,1757633509600,-400.0,0.00028493,7]
[384955287,1757633509620,-478.53,0.00028493,7]
[384955288,1757633509635,-1120.26,0.00028493,7]
[384955289,1757633509656,-511.9,0.00028493,7]
[384955290,1757633509676,-400.0,0.00028493,7]
[384955291,1757633509695,-400.0,0.00028493,7]
[384955292,1757633509715,-2189.62,0.00028493,7]
[384955293,1757633509735,-400.0,0.00028493,7]
[384955294,1757633509751,-400.0,0.00028493,7]
[384955295,1757633509766,-400.0,0.00028493,7]
[384955296,1757633509783,-400.0,0.00028493,7]
[384955297,1757633509800,-302.01956006,0.00028493,7]
[384955298,1757633509815,-400.0,0.00028493,7]
[384955299,1757633509834,-400.0,0.00028493,7]
[384955300,1757633509850,-1070.24,0.00028493,7]
[384955301,1757633509867,-726.75,0.00028493,7]
[384955302,1757633509882,-400.0,0.00028493,7]
[384955303,1757633509899,-400.0,0.00028493,7]
[384955304,1757633509916,-400.0,0.00028493,7]
[384955305,1757633509932,-400.0,0.00028493,7]
[384955306,1757633509950,-531.0,0.00028493,7]
[384955307,1757633509965,-1051.33,0.00028493,7]
[384955308,1757633509982,-400.0,0.00028493,7]
[384955309,1757633509997,-400.0,0.00028493,7]
[384955310,1757633510015,-400.0,0.00028493,7]
[384955311,1757633510031,-400.0,0.00028493,7]
[384955312,1757633510047,-453.86,0.00028493,7]
[384955313,1757633510061,-568.89,0.00028493,7]
[384955314,1757633510076,-593.01,0.00028493,7]
[384955315,1757633510092,-400.0,0.00028493,7]
[384955316,1757633510107,-429.11,0.00028493,7]
[384955317,1757633510123,-400.0,0.00028493,7]
[384955318,1757633510139,-611.58,0.00028493,7]
[384955319,1757633510153,-400.0,0.00028493,7]
[384955320,1757633510168,-565.02,0.00028493,7]
[384955321,1757633510182,-400.0,0.00028493,7]
[384955322,1757633510197,-400.0,0.00028493,7]
[384955323,1757633510213,-400.0,0.00028493,7]
[384955324,1757633510229,-400.0,0.00028493,7]
[384955325,1757633510243,-872.03,0.00028493,7]
[384955326,1757633510258,-808.85,0.00028493,7]
[384955327,1757633510274,-656.37,0.00028493,7]
[384955328,1757633510289,-400.0,0.00028493,7]
[384955329,1757633510303,-864.75,0.00028493,7]
[384955330,1757633510318,-400.0,0.00028493,7]
[384955331,1757633510333,-400.0,0.00028493,7]
[384955332,1757633510348,-701.7,0.00028493,7]
[384955333,1757633510364,-400.0,0.00028493,7]
[384955334,1757633510379,-501.39,0.00028493,7]